bitfinex-derivatives/quotes_SOLF0:USTF0_20260118
["timestamp","ask_amount","ask_price","bid_price","bid_amount"]
[1768769038890,5.20497072,142.42,142.37,19.67737605]
[1768769039086,21.98434956,142.43,142.37,19.67737605]
[1768769039289,5.2045672,142.42,142.37,19.67737605]
[1768769039491,21.98434956,142.43,142.37,19.67737605]
[1768769039791,5.2045695,142.42,142.37,19.67737605]
[1768769039992,21.98434956,142.43,142.37,19.67737605]
[1768769040193,5.2045695,142.42,142.37,19.67737605]
[1768769040394,21.98434956,142.43,142.37,19.67737605]
[1768769040596,5.20449366,142.42,142.37,19.67737605]
[1768769040789,21.98434956,142.43,142.37,19.67737605]
[1768769040989,5.20449366,142.42,142.37,19.67737605]
[1768769041190,21.98434956,142.43,142.37,19.67737605]
[1768769041487,5.20442029,142.42,142.37,19.67737605]
[1768769041682,21.98434956,142.43,142.37,19.67737605]
[1768769041880,5.2041537,142.42,142.37,19.67737605]
[1768769042085,21.98434956,142.43,142.37,19.67737605]
[1768769042295,5.20409154,142.42,142.37,19.67737605]
[1768769042487,28.30544956,142.43,142.37,19.67737605]
[1768769042687,5.20386876,142.42,142.37,19.67737605]
[1768769042889,28.30544956,142.43,142.37,19.67737605]
[1768769043088,5.20386876,142.42,142.37,19.67737605]
[1768769043293,28.30544956,142.43,142.37,19.67737605]
[1768769043591,5.20363621,142.42,142.37,19.67737605]
[1768769043792,28.30544956,142.43,142.37,19.67737605]
[1768769043992,5.20363621,142.42,142.37,19.67737605]
[1768769044192,26.53701417,142.45,142.38,19.67737605]
[1768769044392,6.97128651,142.44,142.38,19.67737605]
[1768769044592,5.20335112,142.43,142.38,19.67737605]
[1768769075114,5.20335112,142.42,142.38,19.67737605]
[1768769075316,20.21641417,142.44,142.38,19.67737605]
[1768769075616,5.22835984,142.43,142.38,19.67737605]
[1768769075816,5.22835984,142.42,142.38,19.67737605]
[1768769076018,20.21641417,142.44,142.38,19.67737605]
[1768769076219,5.22835984,142.43,142.38,19.67737605]
[1768769076516,5.22835984,142.42,142.38,19.67737605]
[1768769076819,20.21641417,142.44,142.38,19.67737605]
[1768769077016,5.22848163,142.43,142.38,19.67737605]
[1768769077216,5.22848163,142.42,142.38,19.67737605]
[1768769077413,20.21641417,142.44,142.38,19.67737605]
[1768769077619,5.22862585,142.43,142.38,19.67737605]
[1768769077817,5.22862585,142.42,142.38,19.67737605]
[1768769078119,20.21641417,142.44,142.38,19.67737605]
[1768769078419,5.22876255,142.43,142.38,19.67737605]
[1768769078618,20.21641417,142.44,142.38,19.67737605]
[1768769078619,5.22876255,142.42,142.38,19.67737605]
[1768769078818,20.21641417,142.44,142.38,19.67737605]
[1768769079121,5.22879103,142.43,142.38,19.67737605]
[1768769079321,5.22879103,142.42,142.38,19.67737605]
[1768769079522,20.21641417,142.44,142.38,19.67737605]
[1768769079714,5.22897979,142.43,142.38,19.67737605]
[1768769079910,5.22897979,142.42,142.38,19.67737605]
[1768769080112,20.21641417,142.44,142.38,19.67737605]
[1768769080414,5.22916508,142.43,142.38,19.67737605]
[1768769080612,5.22916508,142.42,142.38,19.67737605]
[1768769080822,20.21641417,142.44,142.38,19.67737605]
[1768769081022,5.22919482,142.43,142.38,19.67737605]
[1768769081323,5.22919482,142.42,142.38,19.67737605]
[1768769081523,5.22919482,142.41,142.38,19.67737605]
[1768769081824,20.21641417,142.44,142.38,19.67737605]
[1768769082018,5.22944108,142.43,142.38,19.67737605]
[1768769082219,5.22944108,142.42,142.38,19.67737605]
[1768769082518,5.22944108,142.41,142.38,19.67737605]
[1768769082818,20.21641417,142.44,142.38,19.67737605]
[1768769083117,5.22969445,142.43,142.38,19.67737605]
[1768769083313,5.22969445,142.42,142.38,19.67737605]
[1768769083513,5.22969445,142.41,142.38,19.67737605]
[1768769083714,21.98470919,142.44,142.38,19.67737605]
[1768769083916,5.2299879,142.43,142.38,19.67737605]
[1768769084124,5.2299879,142.42,142.38,19.67737605]
[1768769084329,5.2299879,142.41,142.38,19.67737605]
[1768769084520,21.98470919,142.44,142.38,19.67737605]
[1768769084720,5.23033361,142.43,142.38,19.67737605]
[1768769084924,5.23033361,142.42,142.38,19.67737605]
[1768769085120,5.23033361,142.41,142.38,19.67737605]
[1768769085316,21.98470919,142.44,142.38,19.67737605]
[1768769085516,5.23045307,142.43,142.38,19.67737605]
[1768769085721,0.0522055,142.41,142.38,19.72684708]
[1768769099934,0.0522055,142.41,142.38,26.05004708]
[1768769102637,0.0522055,142.41,142.39,19.17865563]
[1768769102935,21.98470919,142.44,142.39,19.17865563]
[1768769103130,5.23271008,142.43,142.39,19.17865563]
[1768769103331,5.23271008,142.42,142.39,19.17865563]
[1768769103532,5.23271008,142.41,142.39,19.17865563]
[1768769103735,21.98470919,142.44,142.39,19.17865563]
[1768769103929,5.23269806,142.43,142.39,19.17865563]
[1768769104125,5.23269806,142.42,142.39,19.17865563]
[1768769104335,5.14992907,142.41,142.39,19.17865563]
[1768769104539,21.98470919,142.44,142.39,19.17865563]
[1768769110747,20.21641417,142.44,142.39,19.17865563]
[1768769112547,19.45329258,142.47,142.4,19.17865563]
[1768769112845,21.2215876,142.47,142.4,19.17865563]
[1768769113540,21.2215876,142.47,142.42,0.0504379]
[1768769114642,284.99329258,142.49,142.42,19.22909353]
[1768769114946,284.99329258,142.49,142.43,19.17865563]
[1768769115944,19.45329258,142.48,142.43,19.17865563]
[1768769116344,5.2238641,142.47,142.43,19.17865563]
[1768769116542,5.2238641,142.46,142.43,19.17865563]
[1768769116742,19.45329258,142.48,142.43,19.17865563]
[1768769116945,5.22377362,142.47,142.43,19.17865563]
[1768769117146,5.22377362,142.46,142.43,19.17865563]
[1768769117445,19.45329258,142.48,142.43,19.17865563]
[1768769117647,5.21372459,142.47,142.43,19.17865563]
[1768769117842,5.21372459,142.46,142.43,19.17865563]
[1768769118037,19.45329258,142.48,142.43,19.17865563]
[1768769118242,5.21272437,142.47,142.43,19.17865563]
[1768769118441,5.21272437,142.46,142.43,19.17865563]
[1768769118744,19.45329258,142.48,142.43,19.17865563]
[1768769118949,5.21232679,142.47,142.43,19.17865563]
[1768769119149,5.21232679,142.46,142.43,19.17865563]
[1768769119353,21.2215876,142.48,142.42,0.0504379]
[1768769119547,19.45329258,142.46,142.42,0.0504379]
[1768769120252,21.2215876,142.46,142.42,0.0504379]
[1768769120451,5.21062574,142.45,142.39,19.17865563]
[1768769120652,21.2215876,142.46,142.39,19.17865563]
[1768769120848,5.21069831,142.45,142.39,19.17865563]
[1768769121053,26.43234816,142.44,142.39,19.17865563]
[1768769121255,5.21153588,142.43,142.39,19.17865563]
[1768769121455,21.2215876,142.44,142.39,19.17865563]
[1768769121651,5.21140728,142.43,142.39,19.17865563]
[1768769121851,21.2215876,142.44,142.39,19.17865563]
[1768769124356,19.45329258,142.44,142.39,19.17865563]
[1768769128158,20.24566735,142.46,142.39,19.17865563]
[1768769128359,5.21113396,142.45,142.39,19.17865563]
[1768769128659,5.21113396,142.44,142.39,19.17865563]
[1768769128858,20.24566735,142.46,142.39,19.17865563]
[1768769129061,5.21101643,142.45,142.39,19.17865563]
[1768769129360,5.21101643,142.44,142.39,19.17865563]
[1768769129557,20.24566735,142.46,142.39,19.17865563]
[1768769129756,5.21091109,142.45,142.39,19.17865563]
[1768769129956,5.21091109,142.44,142.39,19.17865563]
[1768769130157,20.24566735,142.46,142.39,19.17865563]
[1768769130357,5.21092327,142.45,142.39,19.17865563]
[1768769130656,5.21092327,142.44,142.39,19.17865563]
[1768769130858,20.24566735,142.46,142.39,19.17865563]
[1768769131057,5.21082266,142.45,142.39,19.17865563]
[1768769131263,5.21082266,142.44,142.39,19.17865563]
[1768769131462,6.3194,142.47,142.39,25.50135563]
[1768769131665,5.21070262,142.46,142.4,20.03272914]
[1768769131865,5.21070262,142.45,142.4,20.03272914]
[1768769132061,6.3194,142.47,142.4,20.03272914]
[1768769132261,5.21059476,142.46,142.4,20.03272914]
[1768769132462,5.21059476,142.45,142.4,20.03272914]
[1768769132661,26.56506735,142.47,142.4,20.03272914]
[1768769132862,5.21053545,142.46,142.4,20.03272914]
[1768769133062,5.21053545,142.45,142.4,20.03272914]
[1768769133366,26.56506735,142.47,142.4,20.03272914]
[1768769133564,5.21039986,142.46,142.4,20.03272914]
[1768769133767,5.21039986,142.45,142.4,20.03272914]
[1768769133960,26.56506735,142.47,142.4,20.03272914]
[1768769134264,5.21039986,142.46,142.4,20.03272914]
[1768769134565,5.21039986,142.45,142.4,20.03272914]
[1768769134756,26.56506735,142.47,142.4,20.03272914]
[1768769134962,5.21029489,142.46,142.4,20.03272914]
[1768769135157,5.21029489,142.45,142.4,20.03272914]
[1768769135360,293.87256237,142.49,142.41,20.03272914]
[1768769135557,25.45544103,142.48,142.41,20.03272914]
[1768769135756,5.20977368,142.47,142.41,20.03272914]
[1768769135968,5.20977368,142.46,142.41,20.03272914]
[1768769136168,20.24566735,142.48,142.41,20.03272914]
[1768769136369,5.20921505,142.47,142.41,20.03272914]
[1768769136568,5.20919338,142.46,142.41,20.03272914]
[1768769136769,20.24566735,142.48,142.41,20.03272914]
[1768769136969,5.20919107,142.47,142.41,20.03272914]
[1768769137165,5.20919107,142.46,142.41,20.03272914]
[1768769137470,20.24566735,142.48,142.41,20.03272914]
[1768769137667,5.20872227,142.47,142.41,20.03272914]
[1768769137862,5.20872227,142.46,142.41,20.03272914]
[1768769138066,20.24566735,142.48,142.41,20.03272914]
[1768769138264,5.20833167,142.47,142.41,20.03272914]
[1768769138464,5.20833167,142.46,142.41,20.03272914]
[1768769138665,20.24566735,142.48,142.41,20.03272914]
[1768769138971,5.20831173,142.47,142.42,19.23361661]
[1768769139166,5.20831173,142.46,142.42,19.23361661]
[1768769139366,20.24566735,142.48,142.42,19.23361661]
[1768769139560,5.20800373,142.47,142.42,19.23361661]
[1768769139869,5.20800373,142.46,142.42,19.23361661]
[1768769140059,20.24566735,142.48,142.42,19.23361661]
[1768769140260,5.20764363,142.47,142.42,19.23361661]
[1768769140461,20.24566735,142.48,142.42,19.23361661]
[1768769140671,5.20765143,142.47,142.42,19.23361661]
[1768769140863,20.24566735,142.48,142.42,19.23361661]
[1768769141064,5.20765143,142.47,142.42,19.23361661]
[1768769141364,20.24566735,142.48,142.42,19.23361661]
[1768769141569,5.2074085,142.47,142.42,19.23361661]
[1768769141764,20.24566735,142.48,142.42,19.23361661]
[1768769141965,5.2074085,142.47,142.42,25.55501661]
[1768769142165,20.24566735,142.48,142.42,25.55501661]
[1768769142367,5.20718277,142.47,142.42,25.55501661]
[1768769142567,20.24566735,142.48,142.42,25.55501661]
[1768769142767,5.2072494,142.47,142.42,25.55501661]
[1768769142968,22.0128571,142.48,142.42,25.55501661]
[1768769143169,5.2072494,142.47,142.42,25.55501661]
[1768769143369,22.0128571,142.48,142.42,25.55501661]
[1768769143574,5.20715008,142.47,142.42,25.55501661]
[1768769143774,22.0128571,142.48,142.42,25.55501661]
[1768769143970,5.20715008,142.47,142.44,19.23361661]
[1768769144273,267.30718975,142.49,142.44,19.23361661]
[1768769144471,5.20685081,142.48,142.44,19.23361661]
[1768769144673,5.20685081,142.47,142.44,19.23361661]
[1768769144867,267.30718975,142.49,142.44,19.23361661]
[1768769145064,5.20685081,142.48,142.44,19.23361661]
[1768769145272,5.20685081,142.47,142.44,19.23361661]
[1768769145472,267.30718975,142.49,142.44,19.23361661]
[1768769145668,5.20657909,142.48,142.44,19.23361661]
[1768769145872,5.20657909,142.47,142.44,19.23361661]
[1768769146075,287.66872958,142.49,142.44,19.23361661]
[1768769146374,5.20646063,142.48,142.44,19.23361661]
[1768769146673,5.20646063,142.47,142.44,19.23361661]
[1768769146875,287.66872958,142.49,142.44,19.23361661]
[1768769147070,5.20646294,142.48,142.44,19.23361661]
[1768769147276,5.20646294,142.47,142.44,19.23361661]
[1768769147471,287.66872958,142.49,142.44,19.23361661]
[1768769147671,5.20552661,142.48,142.44,19.23361661]
[1768769147971,5.20552661,142.47,142.44,19.23361661]
[1768769148170,287.66872958,142.49,142.44,19.23361661]
[1768769148372,5.20554081,142.48,142.44,19.23361661]
[1768769148670,5.20554081,142.47,142.44,19.23361661]
[1768769148871,287.66872958,142.49,142.44,19.23361661]
[1768769149071,5.20554081,142.48,142.44,19.23361661]
[1768769149271,5.20554081,142.47,142.44,19.23361661]
[1768769149471,287.66872958,142.49,142.44,19.23361661]
[1768769149669,5.20561617,142.48,142.43,6.3209]
[1768769149867,5.20561617,142.47,142.43,25.55451661]
[1768769150175,287.66872958,142.49,142.43,25.55451661]
[1768769150374,5.20575622,142.48,142.43,25.55451661]
[1768769150573,5.20575622,142.47,142.43,25.55451661]
[1768769150773,287.66872958,142.49,142.43,25.55451661]
[1768769150972,5.20575622,142.48,142.43,25.55451661]
[1768769151173,5.20575622,142.47,142.43,25.55451661]
[1768769151474,287.66872958,142.49,142.43,25.55451661]
[1768769151676,5.20596824,142.48,142.43,25.55451661]
[1768769151975,5.20596824,142.47,142.43,25.55451661]
[1768769152175,287.66872958,142.49,142.43,25.55451661]
[1768769152375,5.20628557,142.48,142.43,25.55451661]
[1768769152675,5.20628557,142.47,142.43,25.55451661]
[1768769152868,287.66872958,142.49,142.43,25.55451661]
[1768769153065,5.20628557,142.48,142.43,25.55451661]
[1768769153268,5.20628557,142.47,142.43,25.55451661]
[1768769153468,287.66872958,142.49,142.43,25.55451661]
[1768769153670,5.2066801,142.48,142.43,25.55451661]
[1768769153969,5.2066801,142.47,142.43,25.55451661]
[1768769154166,287.66872958,142.49,142.43,25.55451661]
[1768769154367,5.20711691,142.48,142.43,25.55451661]
[1768769154571,5.20711691,142.47,142.43,25.55451661]
[1768769154776,287.66872958,142.49,142.43,25.55451661]
[1768769154977,5.20711691,142.48,142.43,25.55451661]
[1768769155177,5.20711691,142.47,142.43,25.55451661]
[1768769155378,287.66872958,142.49,142.43,25.55451661]
[1768769155575,5.20768296,142.48,142.43,25.55451661]
[1768769155776,5.20768296,142.47,142.43,25.55451661]
[1768769155976,287.66872958,142.49,142.43,25.55451661]
[1768769156178,5.20768296,142.48,142.43,19.23361661]
[1768769156377,287.66872958,142.49,142.43,19.23361661]
[1768769156378,5.20768296,142.47,142.43,19.23361661]
[1768769156577,287.66872958,142.49,142.43,19.23361661]
[1768769156875,5.20830348,142.48,142.43,19.23361661]
[1768769157078,5.20830348,142.47,142.43,19.23361661]
[1768769157269,287.66872958,142.49,142.43,19.23361661]
[1768769157474,5.20908425,142.48,142.43,19.23361661]
[1768769157680,5.20908425,142.47,142.43,19.23361661]
[1768769157874,287.66872958,142.49,142.43,19.23361661]
[1768769158176,5.20908425,142.48,142.43,19.23361661]
[1768769158376,5.20908425,142.47,142.43,19.23361661]
[1768769158573,5.20916794,142.46,142.42,6.3214]
[1768769158778,21.5653522,142.47,142.42,6.3214]
[1768769158981,5.20924681,142.46,142.42,6.3214]
[1768769159281,21.5653522,142.47,142.42,6.3214]
[1768769159478,5.2094503,142.46,142.42,6.3214]
[1768769159681,21.5653522,142.47,142.42,6.3214]
[1768769159879,5.2094503,142.46,142.42,6.3214]
[1768769160078,21.5653522,142.47,142.42,6.3214]
[1768769160278,5.20934054,142.46,142.42,6.3214]
[1768769160482,1.76718975,142.47,142.43,27.30703001]
[1768769160683,287.1053522,142.49,142.44,20.98623001]
[1768769160883,5.20899605,142.48,142.44,20.98623001]
[1768769161182,287.1053522,142.49,142.44,20.98623001]
[1768769161383,5.20884086,142.48,142.44,20.98623001]
[1768769161682,287.1053522,142.49,142.44,20.98623001]
[1768769161981,5.208596,142.48,142.44,20.98623001]
[1768769162184,287.1053522,142.49,142.44,20.98623001]
[1768769162478,5.20822808,142.48,142.44,20.98623001]
[1768769162687,287.1053522,142.49,142.44,20.98623001]
[1768769162874,5.20822808,142.48,142.44,20.98623001]
[1768769163079,287.1053522,142.49,142.44,20.98623001]
[1768769163279,5.20806383,142.48,142.44,20.98623001]
[1768769163582,287.1053522,142.49,142.44,20.98623001]
[1768769163884,21.5653522,142.51,142.44,20.98623001]
[1768769164073,5.20743415,142.5,142.44,20.98623001]
[1768769164277,5.20743415,142.49,142.44,20.98623001]
[1768769164485,21.5653522,142.5,142.44,20.98623001]
[1768769164687,5.20660223,142.49,142.44,20.98623001]
[1768769164885,21.5653522,142.5,142.44,20.98623001]
[1768769166483,21.5653522,142.48,142.42,20.98623001]
[1768769170892,1.76718975,142.46,142.42,20.98623001]
[1768769171092,21.5653522,142.46,142.4,77.98623001]
[1768769171485,19.79816245,142.46,142.4,77.98623001]
[1768769171685,21.5653522,142.46,142.42,0.04951519]
[1768769171889,0.04472479,142.44,142.42,0.04951519]
[1768769181999,21.5653522,142.46,142.42,0.04951519]
[1768769184102,19.79816245,142.46,142.42,0.04951519]
[1768769184601,19.79816245,142.46,142.42,6.37091519]
[1768769186803,21.88251254,142.48,142.42,26.61262585]
[1768769187002,5.22296274,142.47,142.43,26.56241066]
[1768769187190,20.11532279,142.48,142.43,26.56241066]
[1768769187395,5.22265695,142.47,142.43,26.56241066]
[1768769187597,20.11532279,142.48,142.43,26.56241066]
[1768769187798,5.22265695,142.47,142.43,26.56241066]
[1768769187999,20.11532279,142.48,142.43,26.56241066]
[1768769188190,5.22259154,142.47,142.43,26.56241066]
[1768769188394,20.11532279,142.48,142.43,26.56241066]
[1768769188591,5.22263189,142.47,142.43,26.56241066]
[1768769188802,20.11532279,142.48,142.43,26.56241066]
[1768769189000,5.22263189,142.47,142.43,26.56241066]
[1768769189302,1.76718975,142.51,142.44,6.3205]
[1768769189501,25.33789411,142.5,142.44,6.3205]
[1768769189696,5.22257132,142.49,142.44,6.3205]
[1768769189894,5.22257132,142.48,142.44,6.3205]
[1768769190095,5.22257132,142.47,142.44,6.3205]
[1768769190396,20.11532279,142.5,142.45,0.05074041]
[1768769190594,25.33782449,142.49,142.45,0.05074041]
[1768769190790,5.2225017,142.48,142.45,0.05074041]
[1768769191001,5.2225017,142.47,142.45,0.05074041]
[1768769191202,20.11532279,142.49,142.45,0.05074041]
[1768769191501,5.2223961,142.48,142.45,0.05074041]
[1768769191701,5.2223961,142.47,142.45,0.05074041]
[1768769191904,20.11532279,142.49,142.45,0.05074041]
[1768769192098,5.22244281,142.48,142.45,0.05074041]
[1768769192298,5.22244281,142.47,142.45,0.05074041]
[1768769192494,20.11532279,142.49,142.45,0.05074041]
[1768769192694,5.22238861,142.48,142.45,0.05074041]
[1768769192890,5.22238861,142.47,142.45,0.05074041]
[1768769193101,20.11532279,142.49,142.45,0.05074041]
[1768769193302,5.22228346,142.48,142.45,0.05074041]
[1768769193502,5.22228346,142.47,142.45,0.05074041]
[1768769193694,20.11532279,142.49,142.45,0.05074041]
[1768769193894,5.22233874,142.48,142.43,20.24171066]
[1768769194100,5.22233874,142.47,142.43,20.24171066]
[1768769194300,20.11532279,142.49,142.43,20.24171066]
[1768769194502,5.22229681,142.48,142.43,20.24171066]
[1768769194703,5.22229681,142.47,142.43,20.24171066]
[1768769195000,20.11532279,142.49,142.43,20.24171066]
[1768769195204,5.22229681,142.48,142.43,20.24171066]
[1768769195398,5.22229681,142.47,142.43,20.24171066]
[1768769195598,20.11532279,142.49,142.43,20.24171066]
[1768769195799,5.22225665,142.48,142.43,20.24171066]
[1768769195997,5.22225665,142.47,142.43,20.24171066]
[1768769196198,20.11532279,142.49,142.43,20.24171066]
[1768769196400,5.22222053,142.48,142.43,20.24171066]
[1768769196598,5.22222053,142.47,142.43,20.24171066]
[1768769196902,20.11532279,142.49,142.43,20.24171066]
[1768769197201,5.22222053,142.48,142.43,20.24171066]
[1768769197399,5.22222053,142.47,142.43,20.24171066]
[1768769197588,20.11532279,142.49,142.43,20.24171066]
[1768769197794,5.22218899,142.48,142.43,20.24171066]
[1768769197989,5.22218899,142.47,142.43,20.24171066]
[1768769198193,20.11532279,142.49,142.43,20.24171066]
[1768769198491,5.22216149,142.48,142.43,20.24171066]
[1768769198692,5.22216149,142.47,142.43,20.24171066]
[1768769198889,20.11532279,142.49,142.43,20.24171066]
[1768769199098,5.22215918,142.48,142.43,20.24171066]
[1768769199301,5.22215918,142.47,142.43,20.24171066]
[1768769199494,20.11532279,142.49,142.43,20.24171066]
[1768769199696,5.22213479,142.48,142.43,20.24171066]
[1768769199890,5.22213479,142.47,142.43,20.24171066]
[1768769200095,20.11532279,142.49,142.43,20.24171066]
[1768769200302,5.22203531,142.48,142.43,20.24171066]
[1768769200600,5.22203531,142.47,142.43,20.24171066]
[1768769200801,20.11532279,142.49,142.43,20.24171066]
[1768769201001,5.22211398,142.48,142.43,20.24171066]
[1768769201202,5.22211398,142.47,142.43,20.24171066]
[1768769201403,20.11532279,142.49,142.43,20.24171066]
[1768769201601,5.22209721,142.48,142.43,20.24171066]
[1768769201801,5.22209721,142.47,142.43,20.24171066]
[1768769202101,20.11532279,142.49,142.43,20.24171066]
[1768769202301,5.2220005,142.48,142.43,20.24171066]
[1768769202500,5.2220005,142.47,142.43,20.24171066]
[1768769202705,20.11532279,142.49,142.43,20.24171066]
[1768769202901,5.22208445,142.48,142.43,20.24171066]
[1768769203096,5.22208445,142.47,142.43,20.24171066]
[1768769203295,20.11532279,142.49,142.43,20.24171066]
[1768769203496,5.22207571,142.48,142.43,20.24171066]
[1768769203697,5.22207571,142.47,142.43,20.24171066]
[1768769203901,20.11532279,142.49,142.43,20.24171066]
[1768769204201,5.22207571,142.48,142.43,20.24171066]
[1768769204400,5.22207571,142.47,142.43,20.24171066]
[1768769204602,20.11532279,142.49,142.43,20.24171066]
[1768769204803,5.22217397,142.48,142.43,20.24171066]
[1768769205102,5.22217397,142.47,142.43,20.24171066]
[1768769205302,20.11532279,142.49,142.43,20.24171066]
[1768769205508,5.22226033,142.48,142.43,20.24171066]
[1768769205700,5.22226033,142.47,142.43,20.24171066]
[1768769205900,20.11532279,142.49,142.43,20.24171066]
[1768769206100,5.22226033,142.48,142.43,20.24171066]
[1768769206400,5.22226033,142.47,142.43,20.24171066]
[1768769206600,20.11532279,142.49,142.43,20.24171066]
[1768769206902,5.22227657,142.48,142.43,20.24171066]
[1768769207097,5.22227657,142.47,142.43,20.24171066]
[1768769207303,20.11532279,142.49,142.43,20.24171066]
[1768769207608,5.2224168,142.48,142.43,20.24171066]
[1768769207808,5.2224168,142.47,142.43,20.24171066]
[1768769208010,20.11532279,142.49,142.43,20.24171066]
[1768769208210,5.22222798,142.48,142.43,20.24171066]
[1768769208412,5.22222798,142.47,142.43,20.24171066]
[1768769208611,20.11532279,142.49,142.43,20.24171066]
[1768769208812,5.22218995,142.48,142.43,20.24171066]
[1768769209110,5.22218995,142.47,142.43,20.24171066]
[1768769209312,20.11532279,142.49,142.43,20.24171066]
[1768769209511,5.22252555,142.48,142.43,20.24171066]
[1768769209711,5.22252555,142.47,142.43,20.24171066]
[1768769209912,20.11532279,142.49,142.43,20.24171066]
[1768769210110,5.22252555,142.48,142.43,20.24171066]
[1768769210307,5.22252555,142.47,142.43,20.24171066]
[1768769210512,20.11532279,142.49,142.43,20.24171066]
[1768769210712,5.223265,142.48,142.43,20.24171066]
[1768769211012,5.223265,142.47,142.43,20.24171066]
[1768769211312,20.11532279,142.49,142.43,20.24171066]
[1768769211610,5.2239104,142.48,142.43,20.24171066]
[1768769211810,5.2239104,142.47,142.43,20.24171066]
[1768769212012,20.11532279,142.49,142.43,20.24171066]
[1768769212310,5.22377131,142.48,142.43,20.24171066]
[1768769212513,5.22377131,142.47,142.43,20.24171066]
[1768769212712,20.11532279,142.49,142.43,20.24171066]
[1768769213011,5.22376568,142.48,142.43,20.24171066]
[1768769213204,5.22376568,142.47,142.43,20.24171066]
[1768769213402,20.11532279,142.49,142.43,20.24171066]
[1768769213604,5.22389956,142.48,142.43,20.24171066]
[1768769213804,5.22389956,142.47,142.43,20.24171066]
[1768769214002,20.11532279,142.49,142.43,20.24171066]
[1768769214203,5.22389685,142.48,142.43,20.24171066]
[1768769214408,5.22389685,142.47,142.43,20.24171066]
[1768769214605,20.98600618,142.51,142.44,19.07859338]
[1768769214808,5.22334267,142.5,142.44,19.07859338]
[1768769215009,5.22334267,142.49,142.44,19.07859338]
[1768769215210,5.22334267,142.48,142.44,19.07859338]
[1768769215416,20.98600618,142.51,142.44,19.07859338]
[1768769215617,5.22292144,142.5,142.44,19.07859338]
[1768769215809,5.22292144,142.49,142.44,25.39909338]
[1768769216009,5.22292144,142.48,142.44,25.39909338]
[1768769216212,20.98600618,142.51,142.44,25.39909338]
[1768769216413,5.222614,142.5,142.44,25.39909338]
[1768769216714,5.222614,142.49,142.44,25.39909338]
[1768769217016,5.222614,142.48,142.44,25.39909338]
[1768769217215,19.21911216,142.5,142.44,25.39909338]
[1768769217415,5.22264132,142.49,142.44,25.39909338]
[1768769217727,5.22264132,142.48,142.44,25.39909338]
[1768769217915,19.21911216,142.5,142.44,25.39909338]
[1768769218115,5.22264132,142.49,142.44,25.39909338]
[1768769218313,5.22264132,142.48,142.44,25.39909338]
[1768769218516,19.21911216,142.5,142.44,25.39909338]
[1768769218816,5.22257884,142.49,142.44,25.39909338]
[1768769219019,5.22257884,142.48,142.44,25.39909338]
[1768769219214,19.21911216,142.5,142.44,25.39909338]
[1768769219415,5.22251933,142.49,142.44,25.39909338]
[1768769219616,5.22251933,142.48,142.44,25.39909338]
[1768769219812,19.21911216,142.5,142.44,25.39909338]
[1768769220017,5.22247246,142.49,142.44,25.39909338]
[1768769220218,5.22247246,142.48,142.44,25.39909338]
[1768769220418,19.21911216,142.5,142.45,25.39869338]
[1768769220618,5.22259675,142.49,142.45,25.39869338]
[1768769220818,5.22259675,142.48,142.45,25.39869338]
[1768769221019,284.65911216,142.52,142.46,19.07859338]
[1768769223520,284.65911216,142.52,142.46,25.39819338]
[1768769224927,19.21911216,142.51,142.46,25.39819338]
[1768769231526,19.21911216,142.53,142.48,19.07859338]
[1768769232833,19.21911216,142.53,142.48,25.39729338]
[1768769233236,19.21911216,142.53,142.49,0.04753372]
[1768769237737,1.76689402,142.54,142.49,0.04753372]
[1768769237738,20.98600618,142.52,142.49,0.04753372]
[1768769237939,21.03060358,142.52,142.46,25.39799338]
[1768769238833,21.03060358,142.52,142.46,19.07859338]
[1768769243641,21.03060358,142.52,142.45,6.3199]
[1768769244241,21.03060358,142.52,142.44,19.01829725]
[1768769245942,21.03060358,142.52,142.45,19.01829725]
[1768769246843,18.51279975,142.51,142.45,19.01829725]
[1768769251443,18.51279975,142.51,142.46,19.01829725]
[1768769253951,0.0445974,142.52,142.47,19.01829725]
[1768769254844,0.0445974,142.52,142.47,25.33749725]
[1768769258949,0.0445974,142.52,142.47,19.01829725]
[1768769261549,19.91512367,142.55,142.47,20.78519127]
[1768769262854,26.23122367,142.55,142.47,20.78519127]
[1768769263561,6.3163,142.54,142.47,20.78519127]
[1768769263853,8.08319402,142.54,142.47,19.01829725]
[1768769266954,6.3163,142.54,142.47,19.01829725]
[1768769275767,21.68082383,142.55,142.47,19.01829725]
[1768769276865,21.68082383,142.55,142.47,25.33749725]
[1768769277165,21.68082383,142.55,142.48,19.92292356]
[1768769280565,27.99662383,142.55,142.48,19.92292356]
[1768769281467,26.23092367,142.55,142.48,19.92292356]
[1768769281670,27.99662383,142.55,142.48,19.92292356]
[1768769285370,19.91512367,142.55,142.49,19.92292356]
[1768769292978,26.23092367,142.55,142.49,19.92292356]
[1768769310191,25.71124524,142.54,142.49,19.92292356]
[1768769310482,19.39474524,142.51,142.45,19.70630939]
[1768769311884,25.71234524,142.51,142.45,19.70630939]
[1768769315895,19.39474524,142.51,142.45,19.70630939]
[1768769319897,19.39474524,142.51,142.45,26.02630939]
[1768769332813,0.05374776,142.49,142.47,0.05265781]
[1768769337007,19.6446309,142.49,142.43,25.29579608]
[1768769343615,19.6446309,142.49,142.42,237.16373469]
[1768769343616,19.59088314,142.48,142.42,237.16373469]